Cogmind - Beta 14 @@@ ROGUE MODE // 2024.08.22 @ 02:44:02 Player: Zeia Result: Destroyed by Shrapnel Trap Performance ------------- Evolutions (0) 0 Regions Visited (2) 400 Robots Destroyed (30) 150 Value Destroyed (894) 894 Prototype IDs (11) 220 Alien Tech Used (0) 0 Bonus (0) 0 TOTAL SCORE: 1664 Bonus ------- None Cogmind --------- Core Integrity 0/250 Matter 270/300 Energy 196/200 System Corruption 0% Temperature Cool (2) Movement Treading (160) Location -10/Subcaves Parts ------- > --- POWER (1+1) ------ Subdweller Power Source > --- PROPULSION (2+1) - Light Treads Spiked Treads > --- UTILITY (2+1) ---- Large Storage Unit Rainbow Chip > --- WEAPON (2+1) ----- Grenade Launcher Heavy Hammer > --- INVENTORY (15) --- Subdweller Power Source Subdweller Power Source Meta Core Subdweller Monowheel Huge Storage Unit High-capacity Matter Pod (200) Subdweller Optics Subdweller Optics Signal Interpreter Makeshift Light Armor Plating Subdweller Beam Cannon Subdweller Beam Cannon Subdweller Machine Gun Subdweller Shrapnel Launcher Peak State ------------ > --- POWER ------------ Light Ion Engine > --- PROPULSION ------- Light Treads Subdweller Monowheel > --- UTILITY ---------- Large Storage Unit Rainbow Chip > --- WEAPON ----------- Riot Gun Battle Cannon > --- INVENTORY -------- Subdweller Power Source Subdweller Power Source Meta Core Huge Storage Unit High-capacity Matter Pod Subdweller Optics Signal Interpreter Makeshift Light Armor Plating Subdweller Beam Cannon Subdweller Beam Cannon Subdweller Machine Gun Grenade Launcher Subdweller Shrapnel Launcher Heavy Hammer [Rating: 26] Favorites ----------- Power Light Nuclear Core Engine Light Ion Engine Power Core Light Nuclear Core Propulsion Light Treads Treads Light Treads Wheel Subdweller Monowheel Utility Large Storage Unit Device Seismic Detector Storage Large Storage Unit Processor Rainbow Chip Protection Makeshift Light Armor Plating Weapon Assault Rifle Energy Gun Riot Gun Energy Cannon Subdweller Beam Cannon Ballistic Gun Assault Rifle Ballistic Cannon Battle Cannon Launcher Grenade Launcher Impact Weapon Heavy Hammer Build | -11 -10 -10 ------- Run | Yrd Mat Sub Slots Evolved . | . . . Power . | . . . Propulsion . | . . . Utility . | . . . Weapon . | . . . Parts Attached 44 | 7 4 33 Power 4 | 1 1 2 Engine 3 | 1 . 2 Core 1 | . 1 . Reactor . | . . . Propulsion 7 | 2 . 5 Treads 6 | 2 . 4 Leg . | . . . Wheel 1 | . . 1 Hover . | . . . Flight . | . . . Utility 7 | 2 1 4 Device 2 | 1 . 1 Storage 2 | 1 1 . Processor 1 | . . 1 Hackware . | . . . Protection 2 | . . 2 Artifact . | . . . Weapon 26 | 2 2 22 Energy Gun 3 | . . 3 Energy Cannon 3 | . . 3 Ballistic Gun 9 | 2 2 5 Ballistic Cannon 2 | . . 2 Launcher 2 | . . 2 Special Weapon . | . . . Impact Weapon 7 | . . 7 Slashing Weapon . | . . . Piercing Weapon . | . . . Special Melee Weapon . | . . . Unidentified Prototypes 1 | . . 1 Parts Lost 10 | . . 10 Power 2 | . . 2 Propulsion 3 | . . 3 Utility 1 | . . 1 Weapon 4 | . . 4 Highest Loss Streak 3 | . . 3 To Critical Strikes . | . . . Average Slot Usage (%) 74 | . 100 68 Engine 5 | . 3 5 Core 5 | . 10 3 Treads 20 | . 28 18 Device 3 | . 14 . Storage 10 | . 14 9 Processor 5 | . . 7 Protection 1 | . . 1 Energy Cannon 1 | . . 2 Ballistic Gun 12 | . 28 8 Ballistic Cannon 3 | . . 4 Impact Weapon 1 | . . 2 Peak Build Rating 26 | 7 12 26 Average Rating 19 | 5 9 22 On Entrance 6 | . 7 12 Naked Turns . | . . . Heaviest Build 36 | 13 32 36 Greatest Support 40 | 40 40 40 Greatest Overweight (x) 1 | . . 1 Average Overweight (x) . | . . . Largest Inventory Capacity 15 | 8 15 15 Average Capacity 14 | 7 11 15 Most Carried 15 | 6 13 15 Average Carried 13 | 4 9 14 Final Capacity 15 | 8 15 15 Final Carried 14 | 6 13 14 Class Distribution -------------------- 100% | Mutant Dominant Class ---------------- Mutant | -10/Materials Mutant | -10/Subcaves Resources | -11 -10 -10 ----------- Run | Yrd Mat Sub Matter Collected 1256 | 227 143 886 Remotely . | . . . Salvage Created 962 | 55 196 711 Parts 88 | 9 11 68 Haulers Intercepted . | . . . Recyclers Shooed . | . . . Parts Field Recycled . | . . . Retrieved Matter . | . . . Parts Self-Destructed 17 | . . 17 Prevented . | . . . Kills | -11 -10 -10 ------- Run | Yrd Mat Sub Combat Hostiles Destroyed 27 | . 4 23 Guns 17 | . 4 13 Cannons 6 | . . 6 AOE 4 | . . 4 Classes Destroyed 6 | 1 2 3 Tunneler 2 | 2 . . Watcher 1 | . 1 . Swarmer 7 | . . 7 Grunt 4 | . 4 . Sentry 1 | . . 1 Subdweller 15 | . . 15 Best Kill Streak 4 | 1 2 4 Combat Bots Only 4 | . 2 4 Max Kills in Single Turn 2 | 1 1 2 Gunslinging . | . . . Exploded 2 | . . 2 Melee . | . . . Uniques/NPCs Destroyed . | . . . Combat | -11 -10 -10 -------- Run | Yrd Mat Sub Hostile Shots Fired 121 | . 10 111 Missed 38 | . 2 36 Damage Taken 2037 | . 103 1934 Core 287 | . . 287 Absorbed by Shields . | . . . Core Remaining (%) 100 | 100 . . Volleys Fired 83 | 5 10 68 Largest 2 | 2 2 2 Hottest 119 | 40 40 119 Shots Fired 157 | 10 20 127 Gun 125 | 10 20 95 Cannon 30 | . . 30 Launcher 2 | . . 2 Special . | . . . Kinetic 138 | 10 20 108 Thermal 11 | . . 11 Explosive 2 | . . 2 Electromagnetic 6 | . . 6 Robot Hit Streak 18 | 6 14 18 Robot Miss Streak 5 | 2 2 5 Penetration Max . | . . . Secondary Targets 1 | . . 1 Max Gunslinging Chain 1 | . . 1 Shots Hit Robots 120 | 6 15 99 Core Hits 61 | 2 9 50 Critical Kills 1 | . . 1 Critical Parts Destroyed . | . . . Critical Strikes 1 | . . 1 Destroy 1 | . . 1 Melee Attacks 28 | . . 28 Impact 28 | . . 28 Slashing . | . . . Piercing . | . . . Sneak Attacks . | . . . Combat Hostiles . | . . . Follow-up Attacks . | . . . Damage Inflicted 2251 | 74 191 1986 Guns 1594 | 74 191 1329 Cannons 427 | . . 427 Explosions 230 | . . 230 Melee . | . . . Ramming . | . . . Kinetic 1774 | 74 191 1509 Thermal 196 | . . 196 Explosive 230 | . . 230 Electromagnetic 51 | . . 51 Impact . | . . . Slashing . | . . . Piercing . | . . . Highest Corruption . | . . . Average Corruption . | . . . Corruption Purged . | . . . Corruption Blocked . | . . . Overload Shots . | . . . Overflow Damage 8 | . . 8 Projectiles . | . . . Explosions 8 | . . 8 Melee . | . . . Knockbacks 4 | . . 4 Impact . | . . . Kinetic 4 | . . 4 Secondary . | . . . Self-Inflicted Damage 31 | . . 31 Shots 1 | . . 1 Rammed . | . . . Targets Rammed . | . . . Kicked . | . . . Crushed . | . . . Highest Temperature 9 | . 2 9 Average Temperature 4 | . 1 6 Received Heat Transfer 240 | . 57 183 Siege Activations . | . . . Robots Corrupted . | . . . Combat Hostiles . | . . . Parts Fried . | . . . Impact Corruptions . | . . . Robots Melted . | . . . Combat Hostiles . | . . . Parts Melted . | . . . Heat Transferred 259 | . . 259 Parts Sabotaged . | . . . Parts Stolen . | . . . Parts Stripped . | . . . Power Chain Reactions . | . . . Alert | -11 -10 -10 ------- Run | Yrd Mat Sub Peak Influence 159 | 10 159 . Initial 6 | . 6 . Average 35 | 3 39 . Maximum Alert Level . | . . . Low Security (%) 100 | 100 100 . Level 1 . | . . . Level 2 . | . . . Level 3 . | . . . Level 4 . | . . . Level 5 . | . . . High Security . | . . . Max Security . | . . . Squads Dispatched 1 | . 1 . Investigation 1 | . 1 . Extermination . | . . . Reinforcement . | . . . Assault . | . . . Garrison . | . . . Intercept . | . . . Searches Triggered . | . . . Construction Impeded . | . . . Haulers Reinforced . | . . . Active Scanning Responses . | . . . Cargo Convoy Interrupts . | . . . Stealth | -11 -10 -10 --------- Run | Yrd Mat Sub Distress Signals . | . . . Communications Jammed . | . . . Distress Signals . | . . . Times Spotted 33 | . 6 27 Peak Tracking Total 6 | . 2 6 Tactical Retreats 3 | . 1 2 Traps | -11 -10 -10 ------- Run | Yrd Mat Sub Traps Triggered 7 | . 1 6 Indirectly . | . . . Trap Hack Attempts . | . . . Triggered . | . . . Disarmed . | . . . Reprogrammed . | . . . Reused . | . . . Traps Extracted . | . . . Installed . | . . . Triggered . | . . . Machines | -11 -10 -10 ---------- Run | Yrd Mat Sub Machines Disabled 1 | . . 1 Max in Single Turn 1 | . . 1 Machines Repaired . | . . . Machines Dismantled . | . . . Machines Sabotaged . | . . . Overloaded Fab Kills . | . . . Hacking | -11 -10 -10 --------- Run | Yrd Mat Sub Machines Accessed 2 | . 1 1 Terminals 1 | . 1 . Fabricators . | . . . Repair Stations . | . . . Recycling Units . | . . . Scanalyzers . | . . . Garrison Access . | . . . Total Hacks 5 | . 4 1 Successful 3 | . 2 1 Failed 2 | . 2 . Catastrophic . | . . . Database Lockouts . | . . . Manual 8 | . 8 . Terminals 4 | . 4 . Fabricators . | . . . Repair Stations . | . . . Recycling Units . | . . . Scanalyzers . | . . . Garrison Access . | . . . Terminal Hacks 3 | . 2 1 Robot Analysis 2 | . 2 . Derelict Proto ID Bank 1 | . . 1 Fabricator Hacks . | . . . Repair Station Hacks . | . . . Recycling Unit Hacks . | . . . Scanalyzer . | . . . Garrison Access Hacks . | . . . Unauthorized Hacks . | . . . Terminals . | . . . Fabricators . | . . . Repair Stations . | . . . Recycling Units . | . . . Scanalyzers . | . . . Garrison Access . | . . . Data Cores Recovered . | . . . Used . | . . . Hacking Detections 2 | . 2 . Full Trace Events 1 | . 1 . Feedback Events . | . . . Feedback Blocked . | . . . Robot Schematics Acquired . | . . . Robots Built . | . . . Authchips . | . . . Time . | . . . Total Robot Build Rating . | . . . Part Schematics Acquired . | . . . Parts Built . | . . . Authchips . | . . . Time . | . . . Total Part Build Rating . | . . . Parts Repaired . | . . . Time . | . . . Parts Recycled . | . . . Recycled Matter . | . . . Retrieved Matter . | . . . Retrieved Components . | . . . Parts Scanalyzed . | . . . Part Schematics Acquired . | . . . Parts Damaged . | . . . Bothacking | -11 -10 -10 ------------ Run | Yrd Mat Sub Used RIF Installer . | . . . Robots Hacked . | . . . Non-combat . | . . . Combat . | . . . Robot Hacks Applied . | . . . Relay Couplers Released . | . . . Fabnet Peak Effective % . | . . . Robots Rewired . | . . . Allies Hacked . | . . . Hacks Repelled . | . . . Allies | -11 -10 -10 -------- Run | Yrd Mat Sub Total Allies . | . . . Largest Group . | . . . Highest-Rated Group . | . . . Highest-Rated Ally . | . . . Total Orders . | . . . Ally Attacks . | . . . Total Damage . | . . . Kills . | . . . Allies Corrupted . | . . . Allies Melted . | . . . Intel | -11 -10 -10 ------- Run | Yrd Mat Sub Robot Analysis Total 2 | . 2 . Derelict Logs Recovered 2 | . . 2 Drone Launches . | . . . Drone Recoveries . | . . . Exploration | -11 -10 -10 ------------- Run | Yrd Mat Sub Turns Passed 4702 | 113 903 3686 Spaces Moved 2540 | 56 430 2054 Core 6 | 6 . . Treads 2335 | 50 430 1855 Legs . | . . . Wheels 199 | . . 199 Hover . | . . . Flight . | . . . Fastest Speed 50 | 50 160 120 Average Speed 158 | 148 160 158 Slowest Speed 240 | 160 160 240 Overloaded Moves . | . . . Propulsion Burnouts . | . . . Robots Hopped . | . . . Cave-ins Triggered . | . . . Exploration Rate (%) 50 | 5 58 89 Regions Visited 2 Branch Regions 1 Pre-discovered Areas 3 | . . 3 Known Exits Taken . | . . . Unknown Exits Taken 2 | 1 1 . Scrap Searched 13 | . . 13 Spaces Dug . | . . . Terrain Destroyed 3 | . . 3 Melee . | . . . Projectile . | . . . AOE 3 | . . 3 Terrain Rammed . | . . . Walls Destroyed . | . . . Machines Disabled . | . . . Actions | -11 -10 -10 --------- Run | Yrd Mat Sub Total 2991 | 73 626 2292 Wait 251 | . 172 79 Move 2538 | 55 429 2054 Hop . | . . . Pick Up 30 | 6 7 17 Fast Attach 12 | 7 . 5 Attach 10 | . . 10 Detach 1 | . . 1 Swap 22 | . 4 18 Drop 16 | . 4 12 Fire 83 | 5 10 68 Melee 28 | . . 28 Ram . | . . . Kick . | . . . Crush . | . . . Escape Stasis . | . . . Rewire . | . . . Trap . | . . . Miscellaneous . | . . . Route ------- -11/Scrapyard -10/Materials (discovered 2 exits: [*Mat] / *Sub) -10/Subcaves (discovered 2 exits: [*Mat x2]) History --------- Turn | Location | Event 31 | -11/Scrapyard | Discovered new exit (range 16) 114 | -11/Scrapyard | Entered Materials 313 | -10/Materials | Build established: Mutant 843 | -10/Materials | Discovered new exit (range 4) 993 | -10/Materials | Discovered new exit (range 5) 1017 | -10/Materials | Entered Subcaves 1047 | -10/Subcaves | Disturbed a concealed Subdweller 1321 | -10/Subcaves | Discovered new exit (range 12) 1340 | -10/Subcaves | Learned location of Zion (-6) 1607 | -10/Subcaves | A Subdweller sparked back to life 1656 | -10/Subcaves | Found Prototype Processor 1657 | -10/Subcaves | Identified Rainbow Chip 1658 | -10/Subcaves | Attached Rainbow Chip, gained temporary slots: Power, Propulsion, Utility, Weapon 1838 | -10/Subcaves | Met a Zionite searching for "candidates" 2218 | -10/Subcaves | Disturbed a concealed Subdweller 2320 | -10/Subcaves | Lost 3 parts (1p1n1w) 2396 | -10/Subcaves | Core integrity fell below 50% 2718 | -10/Subcaves | Discovered new exit (range 9) 2836 | -10/Subcaves | Disturbed a concealed Subdweller 2996 | -10/Subcaves | Core integrity fell below 20% 3010 | -10/Subcaves | Visited 4L-MR0's lab 3032 | -10/Subcaves | Found Meta Core 3241 | -10/Subcaves | Shifting Twisted Machinery released Spk. Treads 3534 | -10/Subcaves | Shifting Twisted Machinery released Sub. Laser 4013 | -10/Subcaves | A swath of the cavern ceiling suddenly collapsed 4384 | -10/Subcaves | Shifting Twisted Machinery released Sub. Laser 4385 | -10/Subcaves | Shifting Twisted Machinery released Sub. Machine Gun 4448 | -10/Subcaves | A swath of the cavern ceiling suddenly collapsed 4569 | -10/Subcaves | Shifting Twisted Machinery released Sub. Monowheel 4703 | -10/Subcaves | Destroyed by Shrapnel Trap Last Messages --------------- directions. 04460_ Battle Cannon destroyed. 04465_ Triggered Piercing Trap. 04465_ Spikes shoot up from the floor. 04465_ Critical hit (Impale). 04534_ Searching scrap... 04534_ Found Sub. Laser. 04534_ Found 39 Matter. 04535_ Acquired 14 matter. Sub. Monowheel falls loose from the Twisted Machinery. 04582_ S-10 Pest destroyed. 04582_ Destroyed Flight Unit. 04584_ S-10 Pest destroyed. 04592_ Lgt. Assault Rifle fries itself beyond repair. 04593_ Lgt. Ion Engine fries itself beyond repair. 04597_ Lgt. Assault Rifle fries itself beyond repair. 04600_ Flight Unit fries itself beyond repair. 04703_ Triggered Shrapnel Trap. 04703_ An expanding cloud of shrapnel blasts out in all directions. Map ----- +----------------------------------------------------+ | ????????????????????????## # #######?????????? | | ?????????????????????????## "" #?????????? | | ??????????????????????????# "" #?????????? | | ??????????????????????????# "# #?????????? | | ??????????????????????????## ### #?????????? | | ??????????????????????????## ####"" #?????????? | | ??????????????????????????# #### ""#??????????? | | ??????????????????????????## ### [""##?????????? | | ??????????????????????????# # [""#?????????? | | ??????????????????????????## ## "#?????????? | | ??????????????????????????## ### "#?????????? | | ??????????????????????????# ### ##????????? | | ??????????????????????#???# ### "#????????? | | ??????????#####???#?## ??## # ##????????? | | ??###?##### #"######"# ???## # #?????????? | | ### ### #"""""#"# # ?#?## #?????????? | | ## ## """"""""## # #"? ## #?????????? | | ## # ""#"##""#"# "#? ### #?????????? | | ######"###""###"#? #?### ##????????? | | #######?###"#""#? ##??## #????????? | | # # #""##?##;#"#??###???# ###????????? | | ### # #?##";"###; #???# ##??????????? | | ## # #?#;;#;## ###### ###?????????? | | ### #### ### ##?###;;# ### ## ##????????? | | ??# #?# #?####??###;; #????????? | | ??## ######?????### @ ##????????? | | ???# [##??????#; ## ##?????????? | | ???# %#??????## ## #######??????????? | | ???# [##?????## ;#### #???????????????? | | ???# ###?????## ;;##? #??????????????? | | ???#####???????# ;;; #?# #?????????????? | | ???????????????####### ##?## #?????????????? | | ?????????????????????###???## ## ##?????????????? | | ????????????????????????????####?##??????????????? | | ?????????????????????????????????????????????????? | | ?????????????????????????????????????????????????? | | ?????????????????????????????????????????????????? | | ?????????????????????????????????????????????????? | | ?????????????????????????????????????????????????? | | ?????????????????????????????????????????????????? | | ?????????????????????????????????????????????????? | | ?????????????????????????????????????????????????? | | ?????????????????????????????????????????????????? | | ?????????????????????????????????????????????????? | | ?????????????????????????????????????????????????? | | ?????????????????????????????????????????????????? | | ?????????????????????????????????????????????????? | | ?????????????????????????????????????????????????? | | | | | +----------------------------------------------------+ Best States ------------- Heat Dissipation 25 Energy Generation 15 Energy Capacity 200 Matter Stores 300 Matter Capacity 300 Sight Range 16 Terrain Scan Density 10 Armor Coverage 100 Evasion (%) 40 Recoil Reduction 2 Item Schematics ----------------- None Robot Schematics ------------------ None Fabricated ------------ Nothing Alien Tech Used ----------------- None Achievements -------------- None Challenges ------------ None Game ------ Seed MatterDrainedCycler Manual? 0 Play Time 00:35:21 Cumulative 53.8 hours Start 2024.08.22 @ 02:14:27 End 2024.08.22 @ 02:44:02 Sessions 1 Manual Loads 0 Difficulty Rogue Special Mode None Game No. 44 Rogue 44 Adventurer 0 Explorer 0 Win Type - Total 1 Types 1/0/0/0/0/0/0/0/0 Lore% 45 Gallery% 40 Achievement% 36 Wizard Run 0 Options --------- Layout 1 ASCII 0 Keyboard 1 Movement Vi Keybinds 0 Fullscreen 2 Font 20/SmallcapsGlow Map View 64x42 Zoom Use 0% Tactical HUD 1 Map Filters NONE Filters NONE Steam 1 RUN: 9bca5d5b-7b85-4789-87de-a462c31cb685